Cogmind - Beta 15 @@@ ROGUE MODE // 2025.09.27 @ 01:40:19 Player: kiul Result: Destroyed by 1F-1TB(j) with Overtuned Pulse Rifle Performance ------------- Evolutions (0) 0 Regions Visited (3) 600 Robots Destroyed (6) 30 Value Destroyed (270) 270 Prototype IDs (0) 0 Alien Tech Used (0) 0 Bonus (791) 791 TOTAL SCORE: 1691 Bonus ------- Registered with UFD 300 Met Optimus in HQ 500 Friendly Fire -9 Cogmind --------- Core Integrity 0/250 Matter 300/300 Energy 87/100 System Corruption 2% Temperature Cool (12) Movement Core (50) Location -9/Scraptown Parts ------- > --- POWER (1) -------- (None) > --- PROPULSION (2) --- (None) > --- UTILITY (2) ------ Targeting Computer > --- WEAPON (2) ------- (None) > --- INVENTORY (5) ---- Aluminum Leg Improved Aluminum Leg Coolant Injector Signal Interpreter EM Pulse Gun Peak State ------------ > --- POWER ------------ Light Deuterium Engine > --- PROPULSION ------- Spiked Treads Overtuned Treads > --- UTILITY ---------- Large Storage Unit Targeting Computer > --- WEAPON ----------- Medium Laser Rocket Launcher > --- INVENTORY -------- Aluminum Leg Aluminum Leg Improved Aluminum Leg Overtuned Titanium Leg Coolant Injector Small Storage Unit Visual Processing Unit Signal Interpreter Improved Light Armor Plating Force Field Tech Extrapolator EM Pulse Gun DRS Beacon [Rating: 16] Favorites ----------- Power Ion Engine Engine Ion Engine Propulsion Aluminum Leg Treads Overtuned Treads Leg Aluminum Leg Utility Targeting Computer Storage Large Storage Unit Processor Targeting Computer Weapon Medium Laser Energy Gun Medium Laser Launcher Rocket Launcher Build | -11 -10 -10 -9 ------- Run | Yrd Mat Sub Scr Slots Evolved . | . . . . Power . | . . . . Propulsion . | . . . . Utility . | . . . . Weapon . | . . . . Parts Attached 22 | 6 1 . 15 Power 3 | 1 . . 2 Engine 3 | 1 . . 2 Core . | . . . . Reactor . | . . . . Propulsion 13 | 2 . . 11 Treads 3 | . . . 3 Leg 10 | 2 . . 8 Wheel . | . . . . Hover . | . . . . Flight . | . . . . Utility 3 | 1 1 . 1 Device . | . . . . Storage 2 | 1 . . 1 Processor 1 | . 1 . . Hackware . | . . . . Protection . | . . . . Artifact . | . . . . Weapon 3 | 2 . . 1 Energy Gun 2 | 2 . . . Energy Cannon . | . . . . Ballistic Gun . | . . . . Ballistic Cannon . | . . . . Launcher 1 | . . . 1 Special Weapon . | . . . . Impact Weapon . | . . . . Slashing Weapon . | . . . . Piercing Weapon . | . . . . Special Melee Weapon . | . . . . Unidentified Prototypes . | . . . . Corrupted Parts 1 | . . . 1 System Corruption 1 | . . . 1 Parts Lost 4 | . . . 4 Power 1 | . . . 1 Propulsion 2 | . . . 2 Utility . | . . . . Weapon 1 | . . . 1 Highest Loss Streak 4 | . . . 4 To Critical Strikes . | . . . . Average Backups 7 | . . 1 10 Power . | . . . . Propulsion 2 | . . . 2 Utility 3 | . . 1 4 Weapon 2 | . . . 2 Tool/Special . | . . . . Unused Backups 6 | . . . 6 Power . | . . . . Propulsion . | . . . . Utility 6 | . . . 6 Weapon . | . . . . Tool/Special . | . . . . Average Slot Usage (%) 77 | . 96 100 70 Engine 12 | . 14 14 12 Leg 26 | . 28 28 26 Storage 14 | . 14 14 14 Processor 13 | . 10 14 14 Energy Gun 7 | . 28 28 . Peak Build Rating 16 | 6 7 7 16 Average Rating 8 | 4 6 7 9 On Entrance 5 | . 6 7 7 Naked Turns . | . . . . Heaviest Build 31 | 14 14 14 31 Greatest Support 38 | 20 20 20 38 Greatest Overweight (x) 8 | 1 . . 8 Average Overweight (x) . | . . . . Largest Inventory Capacity 15 | 8 8 8 15 Average Capacity 11 | 7 8 8 13 Most Carried 15 | . 1 1 15 Average Carried 8 | . . 1 11 Final Capacity 8 | 8 8 8 5 Final Carried 5 | . 1 1 5 Class Distribution -------------------- 100% | Mutant Dominant Class ---------------- Mutant | -10/Materials Mutant | -10/Subcaves Mutant | -9/Scraptown Resources | -11 -10 -10 -9 ----------- Run | Yrd Mat Sub Scr Matter Collected 509 | 227 23 . 259 Remotely . | . . . . Salvage Created 363 | . 50 . 313 Parts 21 | . 2 . 19 Haulers Intercepted . | . . . . Recyclers Shooed . | . . . . Parts Field Recycled . | . . . . Retrieved Matter . | . . . . Parts Self-Destructed 5 | . . 5 . Prevented . | . . . . Kills | -11 -10 -10 -9 ------- Run | Yrd Mat Sub Scr Combat Hostiles Destroyed 6 | . 1 . 5 Guns 1 | . 1 . . AOE 5 | . . . 5 Classes Destroyed 3 | . 1 . 2 Grunt 1 | . 1 . . Explorer 1 | . . . 1 Scrapper 4 | . . . 4 Best Kill Streak 5 | . 1 . 5 Combat Bots Only 5 | . 1 . 5 Max Kills in Single Turn 2 | . 1 . 2 Gunslinging . | . . . . Exploded 2 | . . . 2 Melee . | . . . . Uniques/NPCs Destroyed . | . . . . Combat | -11 -10 -10 -9 -------- Run | Yrd Mat Sub Scr Hostile Shots Fired 74 | . . . 74 Missed 21 | . . . 21 Hits 53 | . . . 53 Projectile 53 | . . . 53 Critical Strikes 4 | . . . 4 Damage Taken 912 | . . . 912 Core 253 | . . . 253 Absorbed by Shields . | . . . . Core Remaining (%) 100 | 100 . . . Volleys Fired 11 | . 3 . 8 Largest 2 | . 2 . 2 Hottest 90 | . 90 . 83 Shots Fired 17 | . 5 . 12 Gun 12 | . 5 . 7 Cannon . | . . . . Launcher 5 | . . . 5 Special . | . . . . Kinetic . | . . . . Thermal 9 | . 2 . 7 Explosive 5 | . . . 5 Electromagnetic 3 | . 3 . . Robot Hit Streak 3 | . 2 . 3 Robot Miss Streak 2 | . 2 . 2 Penetration Max . | . . . . Secondary Targets . | . . . . Shots Hit Robots 8 | . 2 . 6 Core Hits 22 | . 2 . 20 Critical Kills . | . . . . Critical Parts Destroyed . | . . . . Critical Strikes 3 | . . . 3 Burn 3 | . . . 3 Melee Attacks . | . . . . Impact . | . . . . Slashing . | . . . . Piercing . | . . . . Sneak Attacks . | . . . . Combat Hostiles . | . . . . Follow-up Attacks . | . . . . Damage Inflicted 809 | . 25 . 784 Guns 86 | . 25 . 61 Cannons . | . . . . Explosions 723 | . . . 723 Melee . | . . . . Ramming . | . . . . Kinetic . | . . . . Thermal 73 | . 12 . 61 Explosive 723 | . . . 723 Electromagnetic 13 | . 13 . . Impact . | . . . . Slashing . | . . . . Piercing . | . . . . Highest Corruption 2 | . . . 2 Average Corruption 1 | . . . 1 Corruption Purged . | . . . . Corruption Blocked . | . . . . Effects 4 | . . . 4 Matter Fused 1 | . . . 1 Heat Flow Errors 1 | . . . 1 Parts Fused 1 | . . . 1 Weapon Failures 1 | . . . 1 Overload Shots . | . . . . Overflow Damage 7 | . . . 7 Projectiles . | . . . . Explosions 7 | . . . 7 Melee . | . . . . Knockbacks . | . . . . Impact . | . . . . Kinetic . | . . . . Secondary . | . . . . Self-Inflicted Damage . | . . . . Shots . | . . . . Rammed . | . . . . Targets Rammed . | . . . . Kicked . | . . . . Crushed . | . . . . Highest Temperature 235 | . 42 . 235 Average Temperature 75 | . 22 . 84 Received Heat Transfer 523 | . . . 523 Siege Activations . | . . . . Martial Activations . | . . . . Shielding Activations . | . . . . Robots Disrupted . | . . . . Combat Hostiles . | . . . . Robots Corrupted . | . . . . Combat Hostiles . | . . . . Parts Fried . | . . . . Impact Corruptions . | . . . . Robots Melted . | . . . . Combat Hostiles . | . . . . Parts Melted 1 | . . . 1 Heat Transferred 312 | . 37 . 275 Parts Sabotaged . | . . . . Parts Stolen . | . . . . Parts Stripped . | . . . . Power Chain Reactions . | . . . . Alert | -11 -10 -10 -9 ------- Run | Yrd Mat Sub Scr Maximum Alert Level . | . . . . Low Security (%) 100 | 100 100 . . Level 1 . | . . . . Level 2 . | . . . . Level 3 . | . . . . Level 4 . | . . . . Level 5 . | . . . . High Security . | . . . . Max Security . | . . . . Peak Influence 20 | . 20 . . Initial . | . . . . Average . | . 1 . . Influence Increases 20 | . 20 . . Destroy 0b10 Robot/C 20 | . 20 . . Influence Decreases 20 | . 20 . . Time Decay 20 | . 20 . . Squads Dispatched . | . . . . Investigation . | . . . . Extermination . | . . . . Reinforcement . | . . . . Assault . | . . . . Garrison . | . . . . Intercept . | . . . . Searches Triggered . | . . . . Construction Impeded . | . . . . Haulers Reinforced . | . . . . Active Scanning Responses . | . . . . Cargo Convoy Interrupts . | . . . . Stealth | -11 -10 -10 -9 --------- Run | Yrd Mat Sub Scr Distress Signals . | . . . . Communications Jammed . | . . . . Distress Signals . | . . . . Times Spotted 30 | . 2 . 28 Peak Tracking Total 15 | . 2 . 15 Tactical Retreats . | . . . . Traps | -11 -10 -10 -9 ------- Run | Yrd Mat Sub Scr Traps Triggered . | . . . . Indirectly . | . . . . Trap Hack Attempts . | . . . . Triggered . | . . . . Disarmed . | . . . . Reprogrammed . | . . . . Reused . | . . . . Traps Extracted . | . . . . Installed . | . . . . Triggered . | . . . . Machines | -11 -10 -10 -9 ---------- Run | Yrd Mat Sub Scr Machines Disabled . | . . . . Max in Single Turn . | . . . . Machines Repaired . | . . . . Machines Dismantled . | . . . . Machines Sabotaged . | . . . . Overloaded Fab Kills . | . . . . Hacking | -11 -10 -10 -9 --------- Run | Yrd Mat Sub Scr Machines Accessed 2 | . . 1 1 Terminals . | . . . . Fabricators . | . . . . Repair Stations . | . . . . Recycling Units . | . . . . Scanalyzers . | . . . . Garrison Access . | . . . . Total Hacks 5 | . . 3 2 Successful 5 | . . 3 2 Failed . | . . . . Catastrophic . | . . . . Database Lockouts . | . . . . Manual . | . . . . Terminals . | . . . . Fabricators . | . . . . Repair Stations . | . . . . Recycling Units . | . . . . Scanalyzers . | . . . . Garrison Access . | . . . . Terminal Hacks 5 | . . 3 2 Record 5 | . . 3 2 Fabricator Hacks . | . . . . Repair Station Hacks . | . . . . Recycling Unit Hacks . | . . . . Scanalyzer . | . . . . Garrison Access Hacks . | . . . . Unauthorized Hacks . | . . . . Terminals . | . . . . Fabricators . | . . . . Repair Stations . | . . . . Recycling Units . | . . . . Scanalyzers . | . . . . Garrison Access . | . . . . Data Cores Recovered . | . . . . Used . | . . . . Hacking Detections . | . . . . Full Trace Events . | . . . . Feedback Events . | . . . . Feedback Blocked . | . . . . Robot Schematics Acquired . | . . . . Robots Built . | . . . . Authchips . | . . . . Time . | . . . . Total Robot Build Rating . | . . . . Part Schematics Acquired . | . . . . Parts Built . | . . . . Authchips . | . . . . Time . | . . . . Total Part Build Rating . | . . . . Parts Repaired . | . . . . Time . | . . . . Parts Recycled . | . . . . Recycled Matter . | . . . . Retrieved Matter . | . . . . Retrieved Components . | . . . . Parts Scanalyzed . | . . . . Part Schematics Acquired . | . . . . Parts Damaged . | . . . . Bothacking | -11 -10 -10 -9 ------------ Run | Yrd Mat Sub Scr Used RIF Installer . | . . . . Robots Hacked . | . . . . Non-combat . | . . . . Combat . | . . . . Robot Hacks Applied . | . . . . Relay Couplers Released . | . . . . Fabnet Peak Effective % . | . . . . Robots Rewired . | . . . . Allies Hacked . | . . . . Hacks Repelled . | . . . . Allies | -11 -10 -10 -9 -------- Run | Yrd Mat Sub Scr Total Allies . | . . . . Largest Group . | . . . . Highest-Rated Group . | . . . . Highest-Rated Ally . | . . . . Total Orders . | . . . . Ally Attacks . | . . . . Total Damage . | . . . . Kills . | . . . . Allies Corrupted . | . . . . Allies Melted 2 | . . . 2 Intel | -11 -10 -10 -9 ------- Run | Yrd Mat Sub Scr Active Infowar (turns) . | . . . . Robot Analysis Total . | . . . . Derelict Logs Recovered . | . . . . Drone Launches . | . . . . Drone Recoveries . | . . . . Exploration | -11 -10 -10 -9 ------------- Run | Yrd Mat Sub Scr Turns Passed 1846 | 69 205 235 1337 Spaces Moved 1365 | 55 163 170 977 Core 44 | 9 . . 35 Treads 29 | . . . 29 Legs 1292 | 46 163 170 913 Wheels . | . . . . Hover . | . . . . Flight . | . . . . Fastest Speed 50 | 50 120 120 50 Average Speed 126 | 111 120 120 129 Slowest Speed 450 | 120 120 120 450 Overloaded Moves . | . . . . Propulsion Burnouts . | . . . . Robots Hopped . | . . . . Potential Cave-ins . | . . . . Cave-ins Triggered . | . . . . Exploration Rate (%) 25 | 3 31 8 60 Regions Visited 3 Branch Regions 2 Pre-discovered Areas 1 | . . . 1 Known Exits Taken . | . . . . Unknown Exits Taken 3 | 1 1 1 . Scrap Searched 7 | . . . 7 Spaces Dug . | . . . . Terrain Destroyed 6 | . . . 6 Melee . | . . . . Projectile . | . . . . AOE 6 | . . . 6 Terrain Rammed . | . . . . Walls Destroyed . | . . . . Machines Disabled . | . . . . Actions | -11 -10 -10 -9 --------- Run | Yrd Mat Sub Scr Total 1455 | 60 167 201 1027 Wait 36 | . . 32 4 Move 1362 | 54 162 169 977 Hop . | . . . . Pick Up 11 | . 1 . 10 Fast Attach 9 | 6 1 . 2 Attach 2 | . . . 2 Detach 3 | . . . 3 Swap 15 | . . . 15 Drop 6 | . . . 6 Fire 11 | . 3 . 8 Melee . | . . . . Ram . | . . . . Kick . | . . . . Crush . | . . . . Escape Stasis . | . . . . Rewire . | . . . . Trap . | . . . . Miscellaneous . | . . . . Route ------- -11/Scrapyard -10/Materials (discovered 3 exits: [*Mat] / [*Min] / *Sub) -10/Subcaves (discovered 4 exits: Mat x2 / Rec / *Scr) -9/Scraptown History --------- Turn | Location | Event 19 | -11/Scrapyard | Discovered new exit (range 16) 70 | -11/Scrapyard | Entered Materials 71 | -10/Materials | Met a group of wandering Federalists 123 | -10/Materials | Discovered new exit (range 13) 219 | -10/Materials | Discovered new exit (range 15) 273 | -10/Materials | Discovered new exit (range 3) 275 | -10/Materials | Entered Subcaves 275 | -10/Subcaves | Accompanied by 2 allies 276 | -10/Subcaves | Continued accompanying wandering Federalists (3) 304 | -10/Subcaves | Build established: Mutant 320 | -10/Subcaves | Shifting Twisted Machinery released Sub. Beam Cannon 373 | -10/Subcaves | Visited Clippyterm 427 | -10/Subcaves | Identified exit to Materials 427 | -10/Subcaves | Identified exit to Recycling 487 | -10/Subcaves | Wandering Federalist uncovered a shortcut to Scraptown 510 | -10/Subcaves | Entered Scraptown 686 | -9/Scraptown | Learned location of Extension (-5) 712 | -9/Scraptown | Visited Awakened 766 | -9/Scraptown | Visited Bundlers 846 | -9/Scraptown | Heard Great Nut preacher, LISTEN AND RECITE! 911 | -9/Scraptown | Visited UFD Registry 911 | -9/Scraptown | Registered with UFD as "Megaforce" 950 | -9/Scraptown | Visited Derelict Rescue Squad 961 | -9/Scraptown | Found DRS Beacon 993 | -9/Scraptown | Visited Abandonware Association 1054 | -9/Scraptown | Visited Supply Room 1314 | -9/Scraptown | Visited Scrap Suit Storage 1356 | -9/Scraptown | Met Optimus 1356 | -9/Scraptown | Accepted into 0bPrime 1539 | -9/Scraptown | Civil war broke out across Scraptown 1743 | -9/Scraptown | Optimus destroyed in the chaos of civil war 1819 | -9/Scraptown | Core integrity fell below 50% 1844 | -9/Scraptown | Core integrity fell below 20% 1847 | -9/Scraptown | Destroyed by 1F-1TB(j) with Overtuned Pulse Rifle Last Messages --------------- 01835_ 90-HRT(g) destroyed. 01835_ Bolt penetrates UFD Registry. 01835_ Bolt penetrates AV-I11(j). 01835_ AV-I11(j) destroyed. 01838_ Bolt penetrates 7I-LT5(j). 01838_ 7I-LT5(j) suffers critical hit (Destroy). 01839_ Ovr. Treads destroyed. 01840_ Bolt penetrates 7I-LT5(j). 01841_ System corrupted: Med. Laser failed to cycle. 01841_ Critical hit (Burn: +50). 01841_ Bolt penetrates 8L-KI6(j). 01841_ 7I-LT5(j) destroyed. 01843_ 1F-1TB(j) suffers critical hit (Burn). 01843_ 8L-KI6(j) destroyed. 01843_ Bolt penetrates 9N-X6C(E). 01844_ UB-MJ2(E) heat spikes uncontrollably. 01844_ 9N-X6C(E) heat damages Ovr. Treads. 01844_ QF-JGO(h) destroyed. 01845_ Dropped Lrg. Storage Unit. 01847_ 9N-X6C(E) destroyed. Map ----- +----------------------------------------------------+ | ?????????????????????????????????????????????????? | | ?????????????????????????????????????????????????? | | ?????????????????????????????????????????????????? | | ???????????????????????????????????????????? ????? | | ??????????????????????????????????????????? ??? | | ??????????????????????????????????????????? ? | | ??????????????????????????????????????????? ""? | | ???????????????????????????????????????????? """? | | ??????????????????????????????????????????? "" | | ???????????????????????????????????????????"" "" | | ???????????????????????? ???????????????????" "" | | ???????????????????????? ??!= ??????????????? | | ????????????????????????!??%=%???????????????? ? | | ????????????????????????%?? =/?##??????????#### #? | | ????????????????????????[##;;##;###???????##"#" ## | | ??????????????????????? ! #???????#" =!" | | ????????????????????? jj ![=!%! #???????#" *!% | | ????????????????????? !%*!%= ! #???????#" ! | | ?????????????????????? * #???????# | | ??????????????????????? #???????# | | ???????????????#######??;j*%= #???##### | | ??????????????*== ?#%! #???#"""" * " | | ??????????????%[% #/ #???#"""" %! | | ??? ?? ??!=[==" %= #[% = #???#""" =* " | | ?? # "" !%! " ! ; *[% #???#"""" %!" | | ??# # """ " "! #@! % #???#"""" & " | | ??# # """ "!%!!#=%!= %! ###?#"""" [ " | | ??# # """"" =&=;==%* = ""#"#"""" =%!" | | ??# #? """"""=[g[E![ """"#""" =! " | | ??# #? """""<%![!= =! ";#####" =%! | | ### #? " """""